Workbook

Sheet Sheet1
A1: Note: When changing duty cycle, deselect and reselect that item (repopulates the right most columns)
A2: System Watt Hours | B2: 36393 | D2: (From Volta spread sheet)
A3: Loads | J3: Included
A4: System Voltage | B4: 120 | D4: Equipment | E4: Use | F4: Load | G4: watts | H4: Amps | I4: Duty Cycle | J4: Cont | K4: Average | L4: Hrs/Day
A5: Aqua Hot | B5: 600 | D5: Heating | F5: Electric 1 | G5: 2000 | H5: =G5/B4 -> 16.66666667 | I5: 0.1 | L5: =60*I5*24/60 -> 2.4
F6: Electric 2 | G6: 2000 | H6: =G6/B4 -> 16.66666667 | I6: 0.1 | L6: =60*I6*24/60 -> 2.4
A8: Coleman-Mach | B8: 4704A879 | D8: A/C 1 | F8: Compressor | G8: 1524 | H8: =G8/B4 -> 12.7 | I8: 0.5 | J8: 12.7 | K8: 6.35 | L8: =60*I8*24/60 -> 12
F9: Fans | G9: 384 | H9: =G9/B4 -> 3.2 | I9: 1 | J9: 3.2 | K9: 3.2 | L9: 24
A11: Coleman-Mach | B11: 4704A879 | D11: A/C 2 | F11: Compressor | G11: 1524 | H11: =G11/B4 -> 12.7 | I11: 0.5 | J11: 12.7 | K11: 6.35 | L11: =60*I11*24/60 -> 12
F12: Fans | G12: 384 | H12: =G12/B4 -> 3.2 | I12: 1 | J12: 3.2 | K12: 3.2 | L12: 24
A14: Coleman-Mach | B14: 4704A879 | D14: A/C 3 | F14: Compressor | G14: 1524 | H14: =G14/B4 -> 12.7 | I14: 0.1 | J14: 12.7 | K14: 1.27 | L14: =60*I14*24/60 -> 2.4
F15: Fans | G15: 384 | H15: =G15/B4 -> 3.2 | I15: 0.3 | J15: 3.2 | K15: 0.96 | L15: 7.2
A17: Samsung | B17: MC17J8000CS | D17: MWO | F17: Microwave | G17: 1704 | H17: =G17/B4 -> 14.2 | I17: 0.01 | J17: 14.2 | K17: 0.142 | L17: =60*I17*24/60 -> 0.24
A19: True Induction | B19: S2F3 | D19: Cooktop | F19: Cooktop | G19: 1800 | H19: =G19/B4 -> 15 | I19: 0.03 | J19: 15 | K19: 0.45 | L19: =60*I19*24/60 -> 0.72
A21: Panasonic | B21: RF23HCEDBSR | D21: Refrigerator | F21: Refrigerator | G21: 720 | H21: =G21/B4 -> 6 | I21: 0.1 | J21: 6 | K21: 0.6 | L21: =60*I21*24/60 -> 2.4
A23: Splendide | B23: ARWXF | D23: Washer | F23: Washer | G23: 480 | H23: =G23/B4 -> 4 | I23: 0.05 | J23: 4 | K23: 0.2 | L23: =60*I23*24/60 -> 1.2
A25: Splendide | B25: TVM23X | D25: Dryer | F25: Dryer | G25: 1450 | H25: =G25/B4 -> 12.08333333 | I25: 0.1 | J25: 12.08333333 | K25: 1.208333333 | L25: =60*I25*24/60 -> 2.4
A27: Fisher&Paykel | B27: DD24S | D27: Dishwasher | F27: Dishwasher | G27: 800 | H27: =G27/B4 -> 6.666666667 | I27: 0.01 | J27: 6.666666667 | K27: 0.06666666667 | L27: =60*I27*24/60 -> 0.24
A29: Aries Engineering | D29: Floor Heat | F29: Heat | G29: 1500 | H29: =G29/B4 -> 12.5 | I29: 0.3 | L29: =60*I29*24/60 -> 7.2
H31: Amps | I31: Total | J31: =SUM(J5:J30) -> 105.65 | K31: =SUM(K5:K30) -> 23.997
H32: Watts | I32: Total | J32: =J31*120 -> 12678 | K32: =K31*120 -> 2879.64
I33: Hrs: | J33: =B2/J32 -> 2.87056318 | K33: =B2/K32 -> 12.63803809
